fUST/lending_fUST_20260512
["ID","MTS","AMOUNT","RATE_DAILY","PERIOD"]
[422091800,1778567446000,-500.0,0.00010958,2]
[422091799,1778567446000,-500.0,0.00010958,2]
[422091798,1778567446000,-500.0,0.00010958,2]
[422091808,1778567446000,-500.0,0.00010958,2]
[422091807,1778567446000,-500.0,0.00010958,2]
[422091803,1778567446000,-500.0,0.00010958,2]
[422091823,1778567446000,-500.0,0.00010958,2]
[422091804,1778567446000,-500.0,0.00010958,2]
[422091810,1778567446000,-500.0,0.00010958,2]
[422091817,1778567446000,-1885.42,0.00010958,2]
[422091818,1778567446000,-224.12530215,0.00010958,2]
[422091811,1778567446000,-500.0,0.00010958,2]
[422091816,1778567446000,-500.0,0.00010958,2]
[422091809,1778567446000,-500.0,0.00010958,2]
[422091820,1778567446000,-500.0,0.00010958,2]
[422091812,1778567446000,-577.96,0.00010958,2]
[422091819,1778567446000,-500.0,0.00010958,2]
[422091815,1778567446000,-500.0,0.00010958,2]
[422091814,1778567446000,-500.70641892,0.00010958,2]
[422091813,1778567446000,-500.7298611,0.00010958,2]
[422091822,1778567446000,-500.0,0.00010958,2]
[422091805,1778567446000,-500.0,0.00010958,2]
[422091857,1778567446000,-500.0,0.00010958,2]
[422091916,1778567446000,-500.0,0.00010958,2]
[422091854,1778567446000,-500.0,0.00010958,2]
[422091889,1778567446000,-500.0,0.00010958,2]
[422091890,1778567446000,-500.0,0.00010958,2]
[422091892,1778567446000,-593.78984908,0.00010958,2]
[422091895,1778567446000,-500.0,0.00010958,2]
[422091894,1778567446000,-500.0,0.00010958,2]
[422091893,1778567446000,-501.67471526,0.00010958,2]
[422091896,1778567446000,-10595.98,0.00010958,2]
[422091899,1778567446000,-500.0,0.00010958,2]
[422091901,1778567446000,-500.0,0.00010958,2]
[422091904,1778567446000,-1287.99,0.00010958,2]
[422091903,1778567446000,-500.0,0.00010958,2]
[422091902,1778567446000,-500.0,0.00010958,2]
[422091914,1778567446000,-500.0,0.00010958,2]
[422091891,1778567446000,-500.0,0.00010958,2]
[422091910,1778567446000,-500.0,0.00010958,2]
[422091906,1778567446000,-500.0,0.00010958,2]
[422091913,1778567446000,-581.64345213,0.00010958,2]
[422091909,1778567446000,-500.0,0.00010958,2]
[422091907,1778567446000,-500.0,0.00010958,2]
[422091912,1778567446000,-500.0,0.00010958,2]
[422091915,1778567446000,-500.0,0.00010958,2]
[422091918,1778567446000,-500.0,0.00010958,2]
[422091917,1778567446000,-500.0,0.00010958,2]
[422091919,1778567446000,-1166.56,0.00010958,2]
[422091922,1778567446000,-500.65538706,0.00010958,2]
[422091921,1778567446000,-879.77,0.00010958,2]
[422091920,1778567446000,-500.0,0.00010958,2]
[422091855,1778567446000,-500.0,0.00010958,2]
[422091900,1778567446000,-500.0,0.00010958,2]
[422091886,1778567446000,-500.0,0.00010958,2]
[422091905,1778567446000,-1973.46,0.00010958,2]
[422091898,1778567446000,-500.0,0.00010958,2]
[422091856,1778567446000,-500.0,0.00010958,2]
[422091888,1778567446000,-500.0,0.00010958,2]
[422091861,1778567446000,-500.0,0.00010958,2]
[422091872,1778567446000,-1618.66,0.00010958,2]
[422091871,1778567446000,-1443.26,0.00010958,2]
[422091860,1778567446000,-623.02,0.00010958,2]
[422091864,1778567446000,-500.0,0.00010958,2]
[422091863,1778567446000,-500.0,0.00010958,2]
[422091862,1778567446000,-500.0,0.00010958,2]
[422091866,1778567446000,-2306.39,0.00010958,2]
[422091867,1778567446000,-500.0,0.00010958,2]
[422091869,1778567446000,-500.0,0.00010958,2]
[422091868,1778567446000,-500.0,0.00010958,2]
[422091870,1778567446000,-500.0,0.00010958,2]
[422091873,1778567446000,-500.0,0.00010958,2]
[422091865,1778567446000,-500.0,0.00010958,2]
[422091887,1778567446000,-500.0,0.00010958,2]
[422091897,1778567446000,-2138.24,0.00010958,2]
[422091874,1778567446000,-500.0,0.00010958,2]
[422091878,1778567446000,-505.8804941,0.00010958,2]
[422091885,1778567446000,-500.0,0.00010958,2]
[422091882,1778567446000,-500.0,0.00010958,2]
[422091884,1778567446000,-1534.67,0.00010958,2]
[422091883,1778567446000,-500.0,0.00010958,2]
[422091880,1778567446000,-500.0,0.00010958,2]
[422091879,1778567446000,-501.93359395,0.00010958,2]
[422091877,1778567446000,-500.0,0.00010958,2]
[422091875,1778567446000,-500.0,0.00010958,2]
[422091876,1778567446000,-500.0,0.00010958,2]
[422091881,1778567446000,-500.0,0.00010958,2]
[422091964,1778567447000,-1141.83,0.00010958,2]
[422091976,1778567447000,-151.0,0.00010959,2]
[422091975,1778567447000,-151.0,0.00010959,2]
[422091966,1778567447000,-500.0,0.00010958,2]
[422091967,1778567447000,-2577.45,0.00010958,2]
[422091958,1778567447000,-500.0,0.00010958,2]
[422091957,1778567447000,-500.0,0.00010958,2]
[422091956,1778567447000,-905.41,0.00010958,2]
[422091960,1778567447000,-500.0,0.00010958,2]
[422091955,1778567447000,-500.0,0.00010958,2]
[422091959,1778567447000,-500.99288176,0.00010958,2]
[422091965,1778567447000,-500.0,0.00010958,2]
[422091961,1778567447000,-500.0,0.00010958,2]
[422091974,1778567447000,-151.0,0.00010959,2]
[422091990,1778567447000,-300.0,0.00011176,2]
[422091969,1778567447000,-500.0,0.00010958,2]
[422091971,1778567447000,-500.0,0.00010958,2]
[422091968,1778567447000,-500.0,0.00010958,2]
[422091970,1778567447000,-500.0,0.00010958,2]
[422091972,1778567447000,-151.0,0.00010959,2]
[422091977,1778567447000,-151.0,0.00010959,2]
[422091979,1778567447000,-1412.0,0.00011038,2]
[422091980,1778567447000,-2202.0,0.00011038,2]
[422091978,1778567447000,-500.81828398,0.00010999,2]
[422091989,1778567447000,-300.0,0.00011176,2]
[422091984,1778567447000,-154.0,0.00011118,21]
[422091988,1778567447000,-193.90522702,0.00011118,21]
[422091985,1778567447000,-154.0,0.00011118,21]
[422091953,1778567447000,-500.0,0.00010958,2]
[422091973,1778567447000,-151.0,0.00010959,2]
[422091954,1778567447000,-500.0,0.00010958,2]
[422091927,1778567447000,-500.0,0.00010958,2]
[422091963,1778567447000,-500.0,0.00010958,2]
[422091981,1778567447000,-185.0,0.00011038,2]
[422091926,1778567447000,-522.23,0.00010958,2]
[422091923,1778567447000,-244.18421033,0.00010958,2]
[422091924,1778567447000,-600.973676,0.00010958,2]
[422091925,1778567447000,-532.65256548,0.00010958,2]
[422091940,1778567447000,-500.0,0.00010958,2]
[422091938,1778567447000,-500.0,0.00010958,2]
[422091928,1778567447000,-500.0,0.00010958,2]
[422091935,1778567447000,-576.36,0.00010958,2]
[422091939,1778567447000,-500.0,0.00010958,2]
[422091930,1778567447000,-823.87,0.00010958,2]
[422091933,1778567447000,-500.0,0.00010958,2]
[422091934,1778567447000,-500.0,0.00010958,2]
[422091929,1778567447000,-500.0,0.00010958,2]
[422091951,1778567447000,-500.0,0.00010958,2]
[422091936,1778567447000,-1597.4,0.00010958,2]
[422091931,1778567447000,-500.0,0.00010958,2]
[422091932,1778567447000,-500.0,0.00010958,2]
[422091941,1778567447000,-1047.96,0.00010958,2]
[422091942,1778567447000,-500.0,0.00010958,2]
[422091946,1778567447000,-500.0,0.00010958,2]
[422091945,1778567447000,-500.0,0.00010958,2]
[422091943,1778567447000,-500.0,0.00010958,2]
[422091948,1778567447000,-500.0,0.00010958,2]
[422091950,1778567447000,-500.0,0.00010958,2]
[422091947,1778567447000,-500.0,0.00010958,2]
[422091944,1778567447000,-500.0,0.00010958,2]
[422091949,1778567447000,-433.52203327,0.00010958,2]
[422091952,1778567447000,-500.0,0.00010958,2]
[422091962,1778567447000,-500.0,0.00010958,2]
[422091937,1778567447000,-1136.98,0.00010958,2]
[422091982,1778567447000,-447.118,0.00011038,2]
[422091999,1778567447000,-300.0,0.00011176,2]
[422091983,1778567447000,-154.0,0.00011118,21]
[422092024,1778567447000,-500.0,0.00011232,2]
[422092025,1778567447000,-500.0,0.00011232,2]
[422092030,1778567447000,-500.0,0.00011232,2]
[422092027,1778567447000,-500.0,0.00011232,2]
[422092026,1778567447000,-500.0,0.00011232,2]
[422092028,1778567447000,-500.0,0.00011232,2]
[422092031,1778567447000,-501.31290037,0.00011232,2]
[422092029,1778567447000,-500.0,0.00011232,2]
[422092032,1778567447000,-168.14531982,0.00011232,2]
[422092033,1778567447000,-338.44296673,0.00011232,2]
[422092034,1778567447000,-500.0,0.00011232,2]
[422092035,1778567447000,-500.0,0.00011232,2]
[422092042,1778567447000,-500.0,0.00011232,2]
[422092036,1778567447000,-568.21053925,0.00011232,2]
[422092046,1778567447000,-500.0,0.00011232,2]
[422092044,1778567447000,-500.0,0.00011232,2]
[422092043,1778567447000,-500.0,0.00011232,2]
[422092045,1778567447000,-500.0,0.00011232,2]
[422092037,1778567447000,-500.0,0.00011232,2]
[422092041,1778567447000,-500.0,0.00011232,2]
[422092040,1778567447000,-500.0,0.00011232,2]
[422092038,1778567447000,-500.0,0.00011232,2]
[422092039,1778567447000,-500.0,0.00011232,2]
[422092047,1778567447000,-500.0,0.00011232,2]
[422092050,1778567447000,-500.0,0.00011232,2]
[422092051,1778567447000,-500.0,0.00011232,2]
[422092049,1778567447000,-500.0,0.00011232,2]
[422092048,1778567447000,-500.0,0.00011232,2]
[422091987,1778567447000,-154.0,0.00011118,21]
[422092020,1778567447000,-500.0,0.00011232,2]
[422092021,1778567447000,-500.0,0.00011232,2]
[422092052,1778567447000,-500.0,0.00011232,2]
[422092022,1778567447000,-500.0,0.00011232,2]
[422091986,1778567447000,-154.0,0.00011118,21]
[422091991,1778567447000,-300.0,0.00011176,2]
[422091993,1778567447000,-300.0,0.00011176,2]
[422091992,1778567447000,-300.0,0.00011176,2]
[422092000,1778567447000,-300.0,0.00011176,2]
[422091994,1778567447000,-300.0,0.00011176,2]
[422092001,1778567447000,-300.0,0.00011176,2]
[422091995,1778567447000,-300.0,0.00011176,2]
[422092003,1778567447000,-300.0,0.00011176,2]
[422091996,1778567447000,-300.0,0.00011176,2]
[422092004,1778567447000,-600.0,0.00011176,2]
[422091998,1778567447000,-300.0,0.00011176,2]
[422092053,1778567447000,-500.0,0.00011232,2]
[422091997,1778567447000,-300.0,0.00011176,2]
[422092002,1778567447000,-300.0,0.00011176,2]
[422092016,1778567447000,-502.11056377,0.00011232,2]
[422092023,1778567447000,-500.0,0.00011232,2]
[422092006,1778567447000,-503.90542972,0.00011232,2]
[422092010,1778567447000,-503.75212311,0.00011232,2]
[422092011,1778567447000,-500.91248801,0.00011232,2]
[422092012,1778567447000,-503.5986148,0.00011232,2]
[422092009,1778567447000,-249.6157498,0.00011232,2]
[422092014,1778567447000,-500.0,0.00011232,2]
[422092019,1778567447000,-500.0,0.00011232,2]
[422092013,1778567447000,-500.0,0.00011232,2]
[422092008,1778567447000,-500.0,0.00011232,2]
[422092007,1778567447000,-502.03511642,0.00011232,2]
[422092018,1778567447000,-500.0,0.00011232,2]
[422092017,1778567447000,-501.47252382,0.00011232,2]
[422092005,1778567447000,-1201.5175,0.00011232,2]
[422092015,1778567447000,-500.0,0.00011232,2]
[422092106,1778567448000,-480.15245875,0.00011232,2]
[422092097,1778567448000,-499.78672808,0.00011232,2]
[422092105,1778567448000,-500.0,0.00011232,2]
[422092095,1778567448000,-500.0,0.00011232,2]
[422092092,1778567448000,-501.81216003,0.00011232,2]
[422092093,1778567448000,-501.16895534,0.00011232,2]
[422092091,1778567448000,-500.0,0.00011232,2]
[422092090,1778567448000,-500.0,0.00011232,2]
[422092088,1778567448000,-501.34092106,0.00011232,2]
[422092083,1778567448000,-500.0,0.00011232,2]
[422092094,1778567448000,-501.381254,0.00011232,2]
[422092089,1778567448000,-500.0,0.00011232,2]
[422092087,1778567448000,-500.0,0.00011232,2]
[422092114,1778567448000,-500.93140752,0.00011232,2]
[422092099,1778567448000,-527.37246343,0.00011232,2]
[422092103,1778567448000,-500.0,0.00011232,2]
[422092098,1778567448000,-319.36074655,0.00011232,2]
[422092100,1778567448000,-500.0,0.00011232,2]
[422092102,1778567448000,-500.0,0.00011232,2]
[422092101,1778567448000,-500.0,0.00011232,2]
[422092104,1778567448000,-500.0,0.00011232,2]
[422092107,1778567448000,-500.0,0.00011232,2]
[422092109,1778567448000,-500.48644094,0.00011232,2]
[422092110,1778567448000,-500.0,0.00011232,2]
[422092112,1778567448000,-447.05977211,0.00011232,2]
[422092108,1778567448000,-500.0,0.00011232,2]
[422092111,1778567448000,-500.48651687,0.00011232,2]
[422092086,1778567448000,-500.0,0.00011232,2]
[422092096,1778567448000,-375.04622328,0.00011232,2]
[422092084,1778567448000,-500.0,0.00011232,2]
[422092065,1778567448000,-500.71647573,0.00011232,2]
[422092082,1778567448000,-500.0,0.00011232,2]
[422092118,1778567448000,-500.0,0.00011232,2]
[422092054,1778567448000,-500.0,0.00011232,2]
[422092058,1778567448000,-500.0,0.00011232,2]
[422092059,1778567448000,-500.0,0.00011232,2]
[422092060,1778567448000,-500.0,0.00011232,2]
[422092057,1778567448000,-500.0,0.00011232,2]
[422092056,1778567448000,-500.0,0.00011232,2]
[422092055,1778567448000,-500.0,0.00011232,2]
[422092062,1778567448000,-500.0,0.00011232,2]
[422092064,1778567448000,-500.0,0.00011232,2]
[422092061,1778567448000,-500.0,0.00011232,2]
[422092063,1778567448000,-500.0,0.00011232,2]
[422092068,1778567448000,-500.0,0.00011232,2]
[422092085,1778567448000,-374.92947881,0.00011232,2]
[422092066,1778567448000,-500.0,0.00011232,2]
[422092069,1778567448000,-500.0,0.00011232,2]
[422092071,1778567448000,-500.0,0.00011232,2]
[422092070,1778567448000,-503.51918456,0.00011232,2]
[422092081,1778567448000,-500.0,0.00011232,2]
[422092080,1778567448000,-502.88485878,0.00011232,2]
[422092079,1778567448000,-500.0,0.00011232,2]
[422092078,1778567448000,-500.0,0.00011232,2]
[422092073,1778567448000,-500.0,0.00011232,2]
[422092077,1778567448000,-234.92207663,0.00011232,2]
[422092072,1778567448000,-500.0,0.00011232,2]
[422092076,1778567448000,-500.0,0.00011232,2]
[422092074,1778567448000,-504.43060991,0.00011232,2]
[422092075,1778567448000,-500.0,0.00011232,2]
[422092067,1778567448000,-500.6213947,0.00011232,2]
[422092113,1778567448000,-500.89099162,0.00011232,2]
[422092115,1778567448000,-500.0,0.00011232,2]
[422092116,1778567448000,-505.65200428,0.00011232,2]
[422092147,1778567448000,-500.0,0.00011232,2]
[422092158,1778567448000,-503.35766592,0.00011232,2]
[422092152,1778567448000,-502.14360731,0.00011232,2]
[422092159,1778567448000,-431.0379281,0.00011232,2]
[422092151,1778567448000,-500.0,0.00011232,2]
[422092156,1778567448000,-500.77293679,0.00011232,2]
[422092150,1778567448000,-408.0,0.00011232,2]
[422092157,1778567448000,-500.0,0.00011232,2]
[422092154,1778567448000,-500.0,0.00011232,2]
[422092155,1778567448000,-500.39169741,0.00011232,2]
[422092162,1778567448000,-500.0,0.00011232,2]
[422092172,1778567448000,-500.0,0.00011232,2]
[422092166,1778567448000,-500.0,0.00011232,2]
[422092153,1778567448000,-500.0,0.00011232,2]
[422092164,1778567448000,-500.91624915,0.00011232,2]
[422092163,1778567448000,-500.68746623,0.00011232,2]
[422092173,1778567448000,-500.0,0.00011232,2]
[422092167,1778567448000,-501.35737354,0.00011232,2]
[422092168,1778567448000,-502.33798826,0.00011232,2]
[422092170,1778567448000,-501.1001803,0.00011232,2]
[422092171,1778567448000,-501.44424421,0.00011232,2]
[422092169,1778567448000,-785.36,0.00011232,2]
[422092175,1778567448000,-500.0,0.00011232,2]
[422092174,1778567448000,-347.17372814,0.00011232,2]
[422092177,1778567448000,-501.019549,0.00011232,2]
[422092178,1778567448000,-500.0,0.00011232,2]
[422092176,1778567448000,-501.80726781,0.00011232,2]
[422092179,1778567448000,-500.0,0.00011232,2]
[422092165,1778567448000,-502.00560075,0.00011232,2]
[422092149,1778567448000,-502.65287315,0.00011232,2]
[422092161,1778567448000,-500.0,0.00011232,2]
[422092160,1778567448000,-500.0,0.00011232,2]
[422092148,1778567448000,-624.66,0.00011232,2]
[422092120,1778567448000,-500.85321409,0.00011232,2]
[422092127,1778567448000,-500.0,0.00011232,2]
[422092125,1778567448000,-517.06528533,0.00011232,2]
[422092123,1778567448000,-500.53571492,0.00011232,2]
[422092121,1778567448000,-501.2022171,0.00011232,2]
[422092131,1778567448000,-502.79552807,0.00011232,2]
[422092130,1778567448000,-500.0,0.00011232,2]
[422092126,1778567448000,-795.77,0.00011232,2]
[422092119,1778567448000,-500.86678138,0.00011232,2]
[422092128,1778567448000,-500.0,0.00011232,2]
[422092132,1778567448000,-500.0,0.00011232,2]
[422092122,1778567448000,-501.56894987,0.00011232,2]
[422092124,1778567448000,-502.29594968,0.00011232,2]
[422092129,1778567448000,-503.46032392,0.00011232,2]
[422092117,1778567448000,-503.61730234,0.00011232,2]
[422092139,1778567448000,-501.418414,0.00011232,2]
[422092144,1778567448000,-500.0,0.00011232,2]
[422092145,1778567448000,-502.21686603,0.00011232,2]
[422092133,1778567448000,-501.97574968,0.00011232,2]
[422092135,1778567448000,-501.31182226,0.00011232,2]
[422092146,1778567448000,-502.71377637,0.00011232,2]
[422092137,1778567448000,-503.35833175,0.00011232,2]
[422092138,1778567448000,-500.0,0.00011232,2]
[422092136,1778567448000,-500.51564808,0.00011232,2]
[422092134,1778567448000,-501.40199154,0.00011232,2]
[422092140,1778567448000,-500.0,0.00011232,2]
[422092143,1778567448000,-500.0,0.00011232,2]
[422092141,1778567448000,-500.0,0.00011232,2]
[422092142,1778567448000,-501.77381513,0.00011232,2]
[422092222,1778567449000,-500.0,0.00011232,2]
[422092223,1778567449000,-500.0,0.00011232,2]
[422092204,1778567449000,-503.13427222,0.00011232,2]
[422092221,1778567449000,-500.0,0.00011232,2]
[422092226,1778567449000,-577.96,0.00011232,2]
[422092220,1778567449000,-500.68650593,0.00011232,2]
[422092209,1778567449000,-500.0,0.00011232,2]
[422092217,1778567449000,-501.35586427,0.00011232,2]
[422092218,1778567449000,-500.0,0.00011232,2]
[422092219,1778567449000,-500.0,0.00011232,2]
[422092215,1778567449000,-500.0,0.00011232,2]
[422092206,1778567449000,-502.63007082,0.00011232,2]
[422092225,1778567449000,-500.0,0.00011232,2]
[422092216,1778567449000,-500.0,0.00011232,2]
[422092227,1778567449000,-500.0,0.00011232,2]
[422092240,1778567449000,-500.0,0.00011232,2]
[422092229,1778567449000,-1885.42,0.00011232,2]
[422092237,1778567449000,-503.63232304,0.00011232,2]
[422092239,1778567449000,-500.0,0.00011232,2]
[422092241,1778567449000,-500.0,0.00011232,2]
[422092238,1778567449000,-500.0,0.00011232,2]
[422092228,1778567449000,-500.0,0.00011232,2]
[422092230,1778567449000,-500.0,0.00011232,2]
[422092231,1778567449000,-503.38693541,0.00011232,2]
[422092235,1778567449000,-500.0,0.00011232,2]
[422092234,1778567449000,-500.0,0.00011232,2]
[422092232,1778567449000,-500.0,0.00011232,2]
[422092233,1778567449000,-500.0,0.00011232,2]
[422092236,1778567449000,-781.19,0.00011232,2]
[422092224,1778567449000,-500.0,0.00011232,2]
[422092207,1778567449000,-503.45297818,0.00011232,2]
[422092186,1778567449000,-500.0,0.00011232,2]
[422092212,1778567449000,-500.0,0.00011232,2]
[422092243,1778567449000,-500.0,0.00011232,2]
[422092185,1778567449000,-502.12458743,0.00011232,2]
[422092187,1778567449000,-501.84920537,0.00011232,2]
[422092188,1778567449000,-167.5049271,0.00011232,2]
[422092180,1778567449000,-500.88274235,0.00011232,2]
[422092182,1778567449000,-500.94124601,0.00011232,2]
[422092184,1778567449000,-502.33868161,0.00011232,2]
[422092181,1778567449000,-500.0,0.00011232,2]
[422092183,1778567449000,-501.57604826,0.00011232,2]
[422092190,1778567449000,-501.03518037,0.00011232,2]
[422092189,1778567449000,-500.0,0.00011232,2]
[422092191,1778567449000,-500.54244235,0.00011232,2]
[422092200,1778567449000,-500.73860976,0.00011232,2]
[422092193,1778567449000,-504.24156327,0.00011232,2]
[422092201,1778567449000,-500.0,0.00011232,2]
[422092194,1778567449000,-500.58295105,0.00011232,2]
[422092198,1778567449000,-501.75056568,0.00011232,2]
[422092197,1778567449000,-500.72329351,0.00011232,2]
[422092196,1778567449000,-500.69007487,0.00011232,2]
[422092192,1778567449000,-504.62515624,0.00011232,2]
[422092195,1778567449000,-502.26797348,0.00011232,2]
[422092199,1778567449000,-500.0,0.00011232,2]
[422092211,1778567449000,-500.7485258,0.00011232,2]
[422092213,1778567449000,-502.24201903,0.00011232,2]
[422092203,1778567449000,-500.0,0.00011232,2]
[422092214,1778567449000,-500.74410347,0.00011232,2]
[422092210,1778567449000,-500.0,0.00011232,2]
[422092205,1778567449000,-503.58842156,0.00011232,2]
[422092202,1778567449000,-501.47068938,0.00011232,2]
[422092208,1778567449000,-502.72776527,0.00011232,2]
[422092245,1778567449000,-500.0,0.00011232,2]
[422092306,1778567449000,-500.75995544,0.00011232,2]
[422092254,1778567449000,-503.07929341,0.00011232,2]
[422092277,1778567449000,-503.80261504,0.00011232,2]
[422092282,1778567449000,-500.0,0.00011232,2]
[422092283,1778567449000,-500.58704412,0.00011232,2]
[422092284,1778567449000,-500.0,0.00011232,2]
[422092281,1778567449000,-500.0,0.00011232,2]
[422092288,1778567449000,-365.54341035,0.00011232,2]
[422092292,1778567449000,-500.0,0.00011232,2]
[422092287,1778567449000,-501.72089565,0.00011232,2]
[422092286,1778567449000,-500.0,0.00011232,2]
[422092291,1778567449000,-500.0,0.00011232,2]
[422092285,1778567449000,-500.0,0.00011232,2]
[422092289,1778567449000,-500.0,0.00011232,2]
[422092295,1778567449000,-500.0,0.00011232,2]
[422092294,1778567449000,-500.0,0.00011232,2]
[422092293,1778567449000,-500.0,0.00011232,2]
[422092296,1778567449000,-500.0,0.00011232,2]
[422092305,1778567449000,-553.32595008,0.00011232,2]
[422092301,1778567449000,-2138.24,0.00011232,2]
[422092297,1778567449000,-500.0,0.00011232,2]
[422092302,1778567449000,-500.0,0.00011232,2]
[422092304,1778567449000,-501.56375427,0.00011232,2]
[422092299,1778567449000,-500.0,0.00011232,2]
[422092300,1778567449000,-10595.98,0.00011232,2]
[422092298,1778567449000,-500.0,0.00011232,2]
[422092303,1778567449000,-500.0,0.00011232,2]
[422092307,1778567449000,-319.05687755,0.00011232,2]
[422092309,1778567449000,-1287.99,0.00011232,2]
[422092253,1778567449000,-500.0,0.00011232,2]
[422092308,1778567449000,-500.0,0.00011232,2]
[422092278,1778567449000,-500.88267907,0.00011232,2]
[422092275,1778567449000,-500.94091252,0.00011232,2]
[422092290,1778567449000,-1534.67,0.00011232,2]
[422092276,1778567449000,-501.26181079,0.00011232,2]
[422092242,1778567449000,-500.0,0.00011232,2]
[422092279,1778567449000,-1443.26,0.00011232,2]
[422092248,1778567449000,-500.0,0.00011232,2]
[422092247,1778567449000,-500.0,0.00011232,2]
[422092250,1778567449000,-500.0,0.00011232,2]
[422092252,1778567449000,-507.46,0.00011232,2]
[422092249,1778567449000,-503.28822917,0.00011232,2]
[422092251,1778567449000,-500.0,0.00011232,2]
[422092246,1778567449000,-503.41132783,0.00011232,2]
[422092256,1778567449000,-500.0,0.00011232,2]
[422092255,1778567449000,-501.62065807,0.00011232,2]
[422092267,1778567449000,-500.0,0.00011232,2]
[422092268,1778567449000,-623.02,0.00011232,2]
[422092258,1778567449000,-500.0,0.00011232,2]
[422092257,1778567449000,-500.0,0.00011232,2]
[422092244,1778567449000,-500.0,0.00011232,2]
[422092260,1778567449000,-500.93739213,0.00011232,2]
[422092266,1778567449000,-501.16171871,0.00011232,2]
[422092280,1778567449000,-1618.66,0.00011232,2]
[422092273,1778567449000,-500.0,0.00011232,2]
[422092270,1778567449000,-500.0,0.00011232,2]
[422092272,1778567449000,-500.0,0.00011232,2]
[422092269,1778567449000,-500.0,0.00011232,2]
[422092271,1778567449000,-500.0,0.00011232,2]
[422092274,1778567449000,-2306.39,0.00011232,2]
[422092261,1778567449000,-500.0,0.00011232,2]
[422092264,1778567449000,-500.0,0.00011232,2]
[422092262,1778567449000,-500.0,0.00011232,2]
[422092265,1778567449000,-500.75247453,0.00011232,2]
[422092259,1778567449000,-500.0,0.00011232,2]
[422092263,1778567449000,-500.0,0.00011232,2]
[422092356,1778567450000,-500.0,0.00011232,2]
[422092350,1778567450000,-500.0,0.00011232,2]
[422092349,1778567450000,-501.0278004,0.00011232,2]
[422092348,1778567450000,-500.0,0.00011232,2]
[422092342,1778567450000,-501.23598095,0.00011232,2]
[422092358,1778567450000,-501.97380952,0.00011232,2]
[422092346,1778567450000,-501.55704746,0.00011232,2]
[422092347,1778567450000,-501.44373863,0.00011232,2]
[422092344,1778567450000,-500.0,0.00011232,2]
[422092343,1778567450000,-501.75204831,0.00011232,2]
[422092341,1778567450000,-500.99523349,0.00011232,2]
[422092353,1778567450000,-500.0,0.00011232,2]
[422092357,1778567450000,-500.0,0.00011232,2]
[422092351,1778567450000,-500.0,0.00011232,2]
[422092371,1778567450000,-154.0,0.00011413,21]
[422092352,1778567450000,-905.41,0.00011232,2]
[422092354,1778567450000,-500.0,0.00011232,2]
[422092360,1778567450000,-504.51670815,0.00011232,2]
[422092370,1778567450000,-154.0,0.00011413,21]
[422092372,1778567450000,-154.0,0.00011413,21]
[422092359,1778567450000,-1141.83,0.00011232,2]
[422092361,1778567450000,-500.0,0.00011232,2]
[422092362,1778567450000,-2577.45,0.00011232,2]
[422092363,1778567450000,-500.0,0.00011232,2]
[422092369,1778567450000,-154.0,0.00011413,21]
[422092367,1778567450000,-154.0,0.00011413,21]